bitfinex-derivatives/quotes_ETHF0:USTF0_20250528
["timestamp","ask_amount","ask_price","bid_price","bid_amount"]
[1748394969298,0.75541,2646.3,2646.2,0.75539]
[1748394969497,3.96884861,2646.4,2646.3,0.75539]
[1748394969803,0.76104861,2646.4,2646.3,0.75539]
[1748394970297,0.6447,2646.9,2646.3,8.96319]
[1748394970498,0.75534,2646.6,2646.5,0.75531]
[1748394970700,0.75531,2646.6,2646.5,1.2644]
[1748394971096,2.02161,2646.6,2646.5,3.731]
[1748394971400,2.65611,2646.6,2646.5,3.731]
[1748394976398,0.75536,2646.4,2646.3,0.76105861]
[1748394976605,3.96316,2646.4,2646.3,4.49205861]
[1748394976793,3.96316,2646.4,2646.3,3.73666861]
[1748394977206,3.96316,2646.4,2646.3,4.97926861]
[1748394977709,5.32507245,2646.4,2646.3,4.97926861]
[1748394977900,5.32507245,2646.4,2646.3,0.00566861]
[1748394979404,5.3249472,2646.4,2646.3,0.00566861]
[1748394980808,5.3249472,2646.4,2646.3,1.24566861]
[1748394981412,5.3249472,2646.4,2646.3,2.00105861]
[1748394982602,5.3249472,2646.4,2646.3,1.24566861]
[1748394983608,3.96316,2646.4,2646.3,1.24566861]
[1748394983815,5.32492505,2646.4,2646.3,1.24566861]
[1748394984111,5.32492505,2646.4,2646.3,4.97666861]
[1748394984411,3.96316,2646.4,2646.3,4.97666861]
[1748394984908,5.32514391,2646.4,2646.3,4.97666861]
[1748394985308,5.32514391,2646.4,2646.3,5.73205861]
[1748394985508,3.96316,2646.4,2646.3,4.97666861]
[1748394986310,3.96316,2646.4,2646.3,5.73205861]
[1748394986811,5.32704628,2646.4,2646.3,5.73205861]
[1748394987508,3.96316,2646.4,2646.3,5.73205861]
[1748394987712,0.75536,2646.4,2646.3,5.73205861]
[1748394989413,2.12024107,2646.4,2646.3,5.73205861]
[1748394990011,0.75536,2646.4,2646.3,5.73205861]
[1748394990611,2.12015129,2646.4,2646.3,3.73566861]
[1748394990809,3.45095129,2646.4,2646.3,3.73566861]
[1748394991007,4.12255129,2646.4,2646.3,3.73566861]
[1748394991707,4.11461805,2646.4,2646.3,3.73566861]
[1748394992114,2.74982676,2646.4,2646.3,3.73566861]
[1748394992306,4.11523416,2646.4,2646.3,3.73566861]
[1748394992507,4.11523416,2646.4,2646.3,0.00566861]
[1748394992707,44.91523416,2646.4,2646.3,0.00566861]
[1748394994913,44.91523416,2646.4,2646.3,0.07906284]
[1748394995512,2.78443416,2646.4,2646.3,0.83445284]
[1748394995709,2.11283416,2646.4,2646.3,0.83445284]
[1748394996112,1.3654074,2646.4,2646.3,0.83445284]
[1748394996313,3.96316,2646.5,2646.4,0.75536]
[1748394996510,4.57571069,2646.5,2646.4,6.46326]
[1748394996720,0.65986861,2646.8,2646.4,6.46326]
[1748394996721,3.21346861,2646.8,2646.7,0.75528]
[1748394997020,4.58157947,2646.8,2646.7,0.75528]
[1748394997414,1.37377947,2646.8,2646.7,0.75528]
[1748394997714,0.00566861,2646.8,2646.7,0.75528]
[1748395000721,0.00566861,2646.8,2646.7,18.08728]
[1748395007523,0.00566861,2646.8,2646.7,18.07028]
[1748395008126,0.75533,2646.5,2646.4,0.6769]
[1748395008323,3.96313,2646.5,2646.4,3.715]
[1748395009118,3.96313,2646.5,2646.4,4.47036]
[1748395009322,3.96313,2646.5,2646.4,3.715]
[1748395009529,3.96313,2646.5,2646.4,5.0331]
[1748395009727,3.2078,2646.5,2646.4,5.78846]
[1748395009925,3.96313,2646.5,2646.4,6.43246]
[1748395010327,3.2078,2646.5,2646.4,6.43246]
[1748395010829,3.96313,2646.5,2646.4,6.43246]
[1748395011734,0.75536,2646.4,2646.3,0.76104861]
[1748395012031,2.00646,2646.4,2646.3,21.79404861]
[1748395012436,2.00646,2646.4,2646.3,0.00566861]
[1748395012737,2.64616,2646.4,2646.3,3.72066861]
[1748395013237,2.64616,2646.4,2646.3,4.47605861]
[1748395013940,3.2078,2646.5,2646.4,0.75536]
[1748395014433,3.2078,2646.5,2646.4,2.10806]
[1748395014840,3.96313,2646.5,2646.4,2.10806]
[1748395016235,3.96313,2646.5,2646.4,18.6787]
[1748395017537,3.96313,2646.5,2646.4,2.10806]
[1748395017743,3.96313,2646.5,2646.4,5.82306]
[1748395018039,3.96313,2646.5,2646.4,4.47036]
[1748395018240,0.75536,2646.4,2646.3,0.00566861]
[1748395018442,2.78136,2646.4,2646.3,3.72066861]
[1748395019242,2.78136,2646.4,2646.3,0.00566861]
[1748395020940,4.14157403,2646.4,2646.3,0.00566861]
[1748395021239,4.14154102,2646.4,2646.3,0.00566861]
[1748395021445,2.78136,2646.4,2646.3,0.00566861]
[1748395021645,4.14153427,2646.4,2646.3,0.00566861]
[1748395023841,9.14153427,2646.4,2646.3,0.00566861]
[1748395024434,4.14153427,2646.4,2646.3,0.07906284]
[1748395025547,4.14153427,2646.4,2646.3,0.83445284]
[1748395025746,4.14095125,2646.4,2646.3,0.07906284]
[1748395026047,4.14095125,2646.4,2646.3,0.83445284]
[1748395026348,4.14095125,2646.4,2646.3,0.07906284]
[1748395026548,4.14095125,2646.4,2646.3,0.83445284]
[1748395027247,2.78136,2646.4,2646.3,0.83445284]
[1748395028945,2.78136,2646.4,2646.3,2.17575284]
[1748395029750,0.6705,2646.4,2646.3,2.17575284]
[1748395029942,0.75531,2646.6,2646.5,0.75531]
[1748395030551,0.75531,2646.6,2646.5,2.09661]
[1748395031052,2.00161,2646.6,2646.5,2.09661]
[1748395034455,1.2463,2646.6,2646.5,2.09661]
[1748395034755,2.00161,2646.6,2646.5,2.09661]
[1748395034951,2.62045327,2646.6,2646.5,2.09661]
[1748395035652,1.37415327,2646.6,2646.5,2.09661]
[1748395035857,1.37415327,2646.6,2646.5,2.77321]
[1748395036353,2.12946327,2646.6,2646.5,2.77321]
[1748395038357,2.13091464,2646.6,2646.5,2.77321]
[1748395040655,2.13091464,2646.6,2646.5,2.84660423]
[1748395040958,2.13091464,2646.6,2646.5,1.41469423]
[1748395041255,3.46611464,2646.6,2646.5,2.17003423]
[1748395042255,3.46611464,2646.6,2646.5,5.87403423]
[1748395044164,2.13091464,2646.6,2646.5,5.87403423]
[1748395045063,3.96873861,2646.8,2646.7,0.75528]
[1748395045265,5.34390091,2646.8,2646.7,0.75528]
[1748395047165,4.58849061,2646.8,2646.7,0.75528]
[1748395047355,0.00566861,2646.8,2646.7,0.75528]
[1748395048663,0.76091861,2646.8,2646.7,0.75528]
[1748395048869,0.00566861,2646.8,2646.7,0.75528]
[1748395054372,0.00566861,2646.8,2646.7,18.06928]
[1748395055972,0.00566861,2646.8,2646.7,18.14267423]
[1748395056274,0.76091861,2646.8,2646.7,18.14267423]
[1748395056671,0.76091861,2646.8,2646.7,21.84567423]
[1748395057874,0.00566861,2646.8,2646.7,21.84567423]
[1748395058877,0.76091861,2646.8,2646.7,21.84567423]
[1748395059470,0.00566861,2646.8,2646.7,21.84567423]
[1748395060175,0.76091861,2646.8,2646.7,21.84567423]
[1748395060377,0.00566861,2646.8,2646.7,21.84567423]
[1748395062480,0.00566861,2646.8,2646.7,22.48507423]
[1748395063182,0.00566861,2646.8,2646.7,23.16947423]
[1748395067579,0.76091861,2646.8,2646.7,23.16947423]
[1748395067979,0.00566861,2646.8,2646.7,23.16947423]
[1748395068484,0.76091861,2646.8,2646.7,0.07339423]
[1748395068685,7.8224348,2646.8,2646.7,4.23e-06]
[1748395069082,0.75536,2646.4,2646.3,3.70866861]
[1748395069282,46.14057619,2646.4,2646.3,3.70866861]
[1748395069882,5.33948117,2646.4,2646.3,3.70866861]
[1748395070088,6.00418117,2646.4,2646.3,3.70866861]
[1748395071689,6.00418117,2646.4,2646.3,0.00566861]
[1748395072982,6.00326143,2646.4,2646.3,0.00566861]
[1748395074296,0.75553,2645.8,2645.7,3.39994]
[1748395074479,0.75548,2646.0,2645.9,0.75548]
[1748395074788,0.75548,2646.0,2645.9,18.06948]
[1748395074987,2.76598,2646.0,2645.9,18.06948]
[1748395077192,3.2078,2646.1,2646.0,0.75548]
[1748395077389,3.2078,2646.1,2646.0,2.03258]
[1748395077988,3.96325,2646.1,2646.0,2.03258]
[1748395079086,0.75545,2646.1,2646.0,2.03258]
[1748395081495,0.75544,2646.2,2646.1,0.75542]
[1748395081684,0.75544,2646.2,2646.1,5.69582]
[1748395082794,0.6536,2646.3,2646.2,0.75542]
[1748395082795,0.75541,2646.3,2646.2,0.75542]
[1748395082987,5.29208,2646.4,2646.3,0.75539]
[1748395083184,0.75533,2646.6,2646.5,0.75531]
[1748395083487,0.75533,2646.6,2646.5,21.017]
[1748395083991,0.75533,2646.6,2646.5,23.04833]
[1748395085584,3.21346861,2646.8,2646.5,22.293]
[1748395085891,3.96871861,2646.8,2646.7,0.75528]
[1748395086193,3.21346861,2646.8,2646.6,1.976]
[1748395086396,3.96871861,2646.8,2646.7,21.014]
[1748395087295,5.27501861,2646.8,2646.7,21.014]
[1748395087494,3.96871861,2646.8,2646.7,21.014]
[1748395087683,0.00566861,2646.8,2646.7,21.76928]
[1748395087895,0.00566861,2646.8,2646.7,26.76928]
[1748395088095,3.2078,2647.4,2647.3,0.75511]
[1748395088393,3.2078,2647.4,2647.3,21.76911]
[1748395088593,3.96288,2647.4,2647.3,21.76911]
[1748395089595,3.2078,2647.4,2647.3,22.40211]
[1748395089797,0.76070861,2647.6,2647.5,0.75505]
[1748395092698,0.00566861,2647.6,2647.5,0.75505]
[1748395094703,0.00566861,2647.6,2647.5,5.75505]
[1748395094899,2.5512,2648.5,2647.5,46.2808]
[1748395095100,1.39589,2648.5,2648.4,0.75479]
[1748395095399,4.4765,2648.7,2648.6,0.75474]
[1748395095805,5.23121,2648.7,2648.6,0.75474]
[1748395096405,3.96251,2648.7,2648.6,0.75474]
[1748395097495,3.2078,2648.7,2648.6,0.75474]
[1748395098004,3.96251,2648.7,2648.6,1.37474]
[1748395098203,3.2078,2648.7,2648.6,1.37474]
[1748395098598,3.96251,2648.7,2648.6,0.62]
[1748395099812,3.96251,2648.7,2648.6,1.37474]
[1748395100411,3.96251,2648.7,2648.5,1.3164]
[1748395100412,0.75474,2648.6,2648.5,1.3164]
[1748395100620,0.75474,2648.6,2648.5,22.3194]
[1748395100906,2.08164,2648.6,2648.5,22.3194]
[1748395101113,2.08164,2648.6,2648.5,23.07416]
[1748395103010,6.3269,2648.6,2647.9,3.699]
[1748395103215,0.75496,2647.8,2647.7,0.07339423]
[1748395103712,5.0951,2648.0,2647.5,3.699]
[1748395103713,0.75502,2647.6,2647.5,4.45404]
[1748395104610,44.76281,2647.7,2647.6,0.75502]
[1748395104913,44.76281,2647.7,2647.6,1.2406]
[1748395105314,44.76281,2647.7,2647.6,1.99562]
[1748395108614,44.76281,2647.7,2647.6,2.06901423]
[1748395108821,44.76281,2647.7,2647.6,0.07339423]
[1748395109115,44.76281,2647.7,2647.6,0.82841423]
[1748395109313,44.0078,2647.7,2647.6,0.82841423]
[1748395109715,45.3454,2647.7,2647.6,0.75502]
[1748395110917,46.10039,2647.7,2647.6,0.75502]
[1748395111117,45.3454,2647.7,2647.6,0.75502]
[1748395111911,46.10039,2647.7,2647.6,0.75502]
[1748395113217,45.3454,2647.7,2647.6,0.75502]
[1748395114419,4.5454,2647.7,2647.6,0.75502]
[1748395114718,3.2078,2647.7,2647.6,0.75502]
[1748395115119,3.96279,2647.7,2647.6,21.75602]
[1748395116115,3.96279,2647.7,2647.6,0.75502]
[1748395116316,3.96279,2647.7,2647.5,1.2949]
[1748395116317,0.75502,2647.6,2647.5,21.0]
[1748395116618,2.05302,2647.6,2647.5,21.0]
[1748395117820,3.18558,2647.6,2647.3,3.698]
[1748395118023,3.96288,2647.4,2647.3,3.698]
[1748395118822,3.2078,2647.4,2647.1,0.00566861]
[1748395119025,0.75514,2647.2,2647.1,0.00566861]
[1748395119227,0.75514,2647.2,2647.1,3.70366861]
[1748395119425,2.02684,2647.2,2647.1,3.70366861]
[1748395119729,2.02684,2647.2,2647.1,0.00566861]
[1748395119922,3.39777286,2647.2,2647.1,0.00566861]
[1748395121527,2.02684,2647.2,2647.1,0.00566861]
[1748395122232,5.23464,2647.2,2647.1,0.00566861]
[1748395124432,0.75531,2646.6,2646.5,38.062]
[1748395124734,3.96311,2646.6,2646.5,59.82034]
[1748395125330,5.26521,2646.6,2646.5,59.82034]
[1748395125629,0.75536,2646.4,2646.3,0.76105861]
[1748395125833,0.75536,2646.4,2646.3,21.76505861]
[1748395126037,0.75536,2646.4,2646.3,21.00966861]
[1748395126230,0.75536,2646.4,2646.3,4.46005861]
[1748395126533,4.5099,2646.6,2646.3,0.76105861]
[1748395126735,5.26523,2646.6,2646.5,0.75534]
[1748395127136,5.26523,2646.6,2646.5,2.10054]
[1748395127939,3.2078,2646.6,2646.5,2.10054]
[1748395129037,3.96311,2646.6,2646.5,2.10054]
[1748395129239,3.96311,2646.6,2646.5,1.3452]
[1748395129537,3.96311,2646.6,2646.5,22.3502]
[1748395130448,3.96311,2646.6,2646.5,23.10554]
[1748395133236,3.96311,2646.6,2646.5,22.3512]
[1748395133441,5.89061,2646.6,2646.5,22.3512]
[1748395133642,5.89061,2646.6,2646.5,5.0442]
[1748395134642,0.75536,2646.4,2646.3,0.07906284]
[1748395134845,0.75536,2646.4,2646.3,3.77906284]
[1748395135944,0.75536,2646.4,2646.3,4.53445284]
[1748395136747,0.75536,2646.4,2646.3,3.77906284]
[1748395136943,0.75536,2646.4,2646.3,0.07906284]
[1748395137142,0.75556,2645.7,2645.6,38.071]
[1748395137446,0.75556,2645.7,2645.6,41.771]
[1748395137938,41.55556,2645.7,2645.6,41.771]
[1748395138341,41.55556,2645.7,2645.6,42.52659]
[1748395138546,41.55556,2645.7,2645.6,43.84769]
[1748395138737,41.55556,2645.7,2645.6,44.48079]
[1748395141549,44.76336,2645.7,2645.6,44.48079]
[1748395142548,44.76336,2645.7,2645.6,43.7252]
[1748395142843,46.12926,2645.7,2645.6,59.08]
[1748395143051,0.75559,2645.6,2645.5,1.40722]
[1748395143250,0.75559,2645.6,2645.5,22.41822]
[1748395147450,44.0078,2645.7,2645.6,0.75559]
[1748395147753,0.00566861,2645.9,2645.8,0.75553]
[1748395149849,3.2078,2646.6,2646.5,0.75534]
[1748395150056,4.58143814,2646.6,2646.5,21.76634]
[1748395150657,3.2078,2646.6,2646.5,21.76634]
[1748395151752,3.96311,2646.6,2646.5,21.76634]
[1748395151953,3.2078,2646.6,2646.5,21.76634]
[1748395152458,3.96311,2646.6,2646.5,21.76634]
[1748395152662,3.2078,2646.6,2646.5,21.76634]
[1748395153459,3.96313,2646.6,2646.5,21.76433]
[1748395153648,3.96313,2646.6,2646.5,23.11633]
[1748395153853,3.96313,2646.6,2646.5,22.361]
[1748395154854,4.17862343,2646.6,2646.5,22.361]
[1748395155055,4.17862348,2646.6,2646.5,23.11634]
[1748395155461,4.17861906,2646.6,2646.5,23.11634]
[1748395155657,4.17861653,2646.6,2646.5,23.11634]
[1748395155857,4.39410372,2646.6,2646.5,23.11634]
[1748395156055,4.39379822,2646.6,2646.5,23.11634]
[1748395156659,4.39378673,2646.6,2646.5,23.11634]
[1748395157161,4.39391907,2646.6,2646.5,23.11634]
[1748395157760,4.39391398,2646.6,2646.5,23.11634]
[1748395157952,4.39391398,2646.6,2646.5,2.10734]
[1748395158156,4.39391398,2646.6,2646.4,1.2739]
[1748395158157,0.75534,2646.5,2646.4,2.02925]
[1748395158355,2.28714419,2646.5,2646.4,22.2819]
[1748395158552,2.07184,2646.5,2646.4,22.2819]
[1748395158852,2.28714779,2646.5,2646.4,23.03726]
[1748395159052,2.28714128,2646.5,2646.4,23.03726]
[1748395159256,0.21530128,2646.5,2646.4,23.03726]
[1748395159867,3.42328653,2646.6,2646.5,0.75534]
[1748395160066,3.63858698,2646.6,2646.5,2.05114]
[1748395160371,3.63858698,2646.6,2646.5,2.12453423]
[1748395161363,3.63868171,2646.6,2646.5,2.12453423]
[1748395161562,3.63868162,2646.6,2646.5,2.12453423]
[1748395162361,3.42328653,2646.6,2646.5,2.12453423]
[1748395163361,4.17859653,2646.6,2646.5,18.67819423]
[1748395163562,5.43989653,2646.6,2646.5,19.43353423]
[1748395164964,0.75536,2646.4,2646.3,21.76805861]
[1748395165665,2.75206,2646.4,2646.3,4.46005861]
[1748395165864,2.75206,2646.4,2646.3,21.76805861]
[1748395166365,2.75206,2646.4,2646.3,4.46005861]
[1748395166569,2.75206,2646.4,2646.3,21.76805861]
[1748395167265,2.96775958,2646.4,2646.3,3.70466861]
[1748395167469,4.34168167,2646.4,2646.3,21.76805861]
[1748395167966,4.34169429,2646.4,2646.3,21.76805861]
[1748395168468,4.34169429,2646.4,2646.3,21.01266861]
[1748395168664,4.34171699,2646.4,2646.3,21.01266861]
[1748395169273,4.34175541,2646.4,2646.3,21.01266861]
[1748395169469,4.34238474,2646.4,2646.3,18.06905861]
[1748395169669,3.58702474,2646.4,2646.3,18.06905861]
[1748395169861,3.37122731,2646.4,2646.3,19.35545861]
[1748395170267,3.58706133,2646.4,2646.3,19.35545861]
[1748395170566,3.58706146,2646.4,2646.3,19.35545861]
[1748395170967,4.17861653,2646.6,2646.5,0.75534]
[1748395171171,5.7694119,2646.6,2646.5,0.75534]
[1748395171474,5.76940604,2646.6,2646.5,0.82873423]
[1748395171672,5.76940604,2646.6,2646.5,2.14923423]
[1748395171977,6.87667595,2646.6,2646.5,2.14923423]
[1748395172170,7.09248499,2646.6,2646.5,2.14923423]
[1748395173677,5.71752557,2646.6,2646.5,2.14923423]
[1748395173875,7.09282515,2646.6,2646.5,1.39389423]
[1748395174265,6.87701611,2646.6,2646.5,1.39389423]
[1748395174470,7.09292527,2646.6,2646.5,1.3205]
[1748395174674,7.09299738,2646.6,2646.5,1.3205]
[1748395175576,7.09302448,2646.6,2646.5,1.3205]
[1748395175777,7.09302448,2646.6,2646.5,2.07584]
[1748395176276,7.09311752,2646.6,2646.5,2.07584]
[1748395176674,7.09311752,2646.6,2646.5,18.6285]
[1748395176869,7.09311752,2646.6,2646.5,19.38384]
[1748395177177,7.09325739,2646.6,2646.5,19.38384]
[1748395177678,5.77015739,2646.6,2646.5,19.38384]
[1748395178172,5.77353977,2646.6,2646.5,19.38384]
[1748395178379,5.773774,2646.6,2646.5,19.38384]
[1748395179072,5.77382904,2646.6,2646.5,19.38384]
[1748395179375,5.01849904,2646.6,2646.5,19.38384]
[1748395179578,4.80196849,2646.6,2646.5,19.38384]
[1748395179877,5.01850961,2646.6,2646.5,19.38384]
[1748395180271,3.63982765,2646.6,2646.5,19.38384]
[1748395180672,4.39512765,2646.6,2646.5,19.38384]
[1748395180874,4.39513154,2646.6,2646.5,19.38384]
[1748395181178,4.17858653,2646.6,2646.5,19.38384]
[1748395181376,4.39513511,2646.6,2646.5,19.38384]
[1748395181876,4.17858653,2646.6,2646.5,19.38384]
[1748395182087,3.63983481,2646.6,2646.5,19.38384]
[1748395182380,4.39514548,2646.6,2646.5,19.38384]
[1748395182575,4.39514118,2646.6,2646.5,19.38384]
[1748395182879,4.39514113,2646.6,2646.5,19.38384]
[1748395183273,4.39515292,2646.6,2646.5,19.38384]
[1748395183475,3.42328653,2646.6,2646.5,19.38384]
[1748395183684,3.63983993,2646.6,2646.5,19.38384]
[1748395184177,3.63983653,2646.6,2646.5,19.38384]
[1748395184578,3.63983438,2646.6,2646.5,19.38384]
[1748395184980,3.63983508,2646.6,2646.5,19.38384]
[1748395185176,3.42328653,2646.6,2646.5,19.38384]
[1748395185384,3.63988987,2646.6,2646.5,19.38384]
[1748395186186,3.63988857,2646.6,2646.5,19.38384]
[1748395186480,0.21548653,2646.6,2646.5,19.38384]
[1748395186681,0.21548653,2646.6,2646.5,24.38384]
[1748395187375,0.21548653,2646.6,2646.5,19.38384]
[1748395190877,0.21548653,2646.6,2646.5,19.45723423]
[1748395193086,0.21548653,2646.6,2646.5,19.45323423]
[1748395193291,4.17858653,2646.6,2646.5,4.52673423]
[1748395193492,5.77424819,2646.6,2646.5,3.77139423]
[1748395193682,6.40033431,2646.6,2646.5,0.07339423]
[1748395193979,7.67703431,2646.6,2646.5,0.07339423]
[1748395194785,0.75536,2646.4,2646.3,3.70266861]
[1748395195081,2.35094853,2646.4,2646.3,0.00566861]
[1748395195487,43.15093137,2646.4,2646.3,0.00566861]
[1748395195690,41.77178027,2646.4,2646.3,0.00566861]
[1748395195884,42.93369993,2646.4,2646.3,0.00566861]
[1748395196187,43.15008689,2646.4,2646.3,0.00566861]
[1748395196584,47.93369993,2646.4,2646.3,0.00566861]
[1748395196787,48.15008912,2646.4,2646.3,0.00566861]
[1748395197182,48.15007375,2646.4,2646.3,0.00566861]
[1748395197991,0.75559,2645.6,2645.5,1.3364]
[1748395198284,0.97185875,2645.6,2645.5,21.002]
[1748395198484,0.75559,2645.6,2645.5,21.002]
[1748395198686,0.75562,2645.5,2645.4,0.75563]
[1748395198889,1.39712,2645.5,2645.4,21.75763]
[1748395199585,2.73792,2645.5,2645.4,21.75763]
[1748395201489,1.9823,2645.5,2645.4,21.75763]
[1748395201890,2.73792,2645.5,2645.4,21.75763]
[1748395203194,1.9823,2645.5,2645.4,21.75763]
[1748395203389,2.73792,2645.5,2645.4,21.75763]
[1748395204090,0.75558,2645.7,2645.6,0.75556]
[1748395204393,0.75559,2645.6,2645.5,2.07871]
[1748395204693,0.75559,2645.6,2645.5,1.3231]
[1748395204888,0.75562,2645.5,2645.4,3.698]
[1748395205088,0.75562,2645.5,2645.4,0.07339423]
[1748395205089,4.86408445,2645.5,2645.4,0.07339423]
[1748395205295,0.75579,2644.9,2644.8,39.4041]
[1748395205591,3.21346861,2645.1,2644.8,61.16592]
[1748395205793,0.65606861,2645.1,2645.0,0.75576]
[1748395205991,0.00566861,2645.1,2645.0,0.75576]
[1748395206390,0.00566861,2645.1,2645.0,2.07886]
[1748395207996,0.00566861,2645.1,2645.0,7.07886]
[1748395209202,8.61e-06,2645.1,2645.0,7.07886]
[1748395213595,8.61e-06,2645.1,2645.0,24.38786]
[1748395214111,8.61e-06,2645.1,2645.0,5.77586]
[1748395214403,0.75573861,2645.1,2645.0,4.45276]
[1748395214595,8.61e-06,2645.1,2645.0,21.76176]
[1748395214796,1.28100861,2645.1,2645.0,4.45276]
[1748395214997,1.28100861,2645.1,2645.0,21.76176]
[1748395217215,1.28100861,2645.1,2645.0,23.03556]
[1748395220220,1.28100861,2645.1,2645.0,21.83515423]
[1748395220416,2.03673861,2645.1,2645.0,21.83515423]
[1748395220611,2.03673861,2645.1,2645.0,0.82915423]
[1748395220815,2.03673861,2645.1,2645.0,21.83615423]
[1748395221013,2.03673861,2645.1,2645.0,4.52715423]
[1748395221219,2.03673861,2645.1,2645.0,21.08139423]
[1748395221519,2.2525817,2645.1,2645.0,21.08139423]
[1748395221716,2.25256621,2645.1,2645.0,0.07339423]
[1748395222022,7.87151785,2645.1,2644.0,3.698]
[1748395222210,3.2078,2644.1,2644.0,0.75605]
[1748395222415,0.75607,2644.0,2643.9,17.31]
[1748395222623,2.6106,2644.0,2643.9,18.06608]
[1748395222828,2.6106,2644.0,2643.8,4.4541]
[1748395223019,40.8,2644.3,2643.9,17.31]
[1748395223219,0.75591,2644.5,2644.4,0.75593]
[1748395223516,0.75593,2644.4,2644.3,4.45396]
[1748395223823,4.76847217,2644.4,2644.3,4.45396]
[1748395224014,0.21572247,2644.4,2644.3,4.45396]
[1748395224215,1.3449,2644.6,2644.5,0.75591]
[1748395224618,1.3449,2644.6,2644.5,18.06591]
[1748395224932,2.10079,2644.6,2644.4,0.75591]
[1748395225223,2.10079,2644.6,2644.4,4.45391]
[1748395225429,0.75602,2644.1,2643.9,0.75605]
[1748395225628,1.3093,2644.0,2643.6,1.89036]
[1748395225820,1.3093,2644.0,2643.9,0.75608]
[1748395226323,1.3093,2644.0,2643.9,18.06808]
[1748395227823,1.3093,2644.0,2643.9,21.76908]
[1748395230323,1.3093,2644.0,2643.9,4.45508]
[1748395230535,0.75613,2643.8,2643.5,3.8881]
[1748395230730,0.75608,2643.9,2643.8,0.7561]
[1748395230921,0.75609,2643.9,2643.8,0.75609]
[1748395231327,0.75609,2643.9,2643.6,21.014]
[1748395231328,5.09794,2644.0,2643.7,3.699]
[1748395231524,0.75611,2643.8,2643.7,3.699]
[1748395231824,5.09794,2644.0,2643.7,3.699]
[1748395231825,3.2078,2644.0,2643.7,3.699]
[1748395232029,0.6321,2644.1,2644.0,0.75605]
[1748395233535,3.2078,2644.3,2644.2,0.75599]
[1748395233735,3.2078,2644.3,2644.2,4.45499]
[1748395235029,0.75608,2643.9,2643.8,0.07339423]
[1748395235336,3.96388,2643.9,2643.8,0.07339423]
[1748395236127,0.75619,2643.5,2643.4,3.7]
[1748395236536,4.63177,2643.6,2643.5,0.75619]
[1748395236735,4.63178,2643.6,2643.5,0.75619]
[1748395236938,0.75619,2643.5,2643.4,4.45621]
[1748395237839,4.63178,2643.6,2643.5,0.75619]
[1748395238632,3.8756,2643.6,2643.5,0.75619]
[1748395238836,4.63176,2643.6,2643.5,0.75619]
[1748395239943,3.8756,2643.6,2643.5,2.01169]
[1748395240843,4.63176,2643.6,2643.5,2.01169]
[1748395242049,1.42396,2643.6,2643.5,2.01169]
[1748395242344,1.42396,2643.6,2643.5,1.2555]
[1748395243342,1.42396,2643.6,2643.5,2.01169]
[1748395246637,1.42396,2643.6,2643.5,4.9655]
[1748395246840,2.67576,2643.6,2643.5,4.9655]
[1748395247131,2.67576,2643.6,2643.5,5.72169]
[1748395247634,4.04568801,2643.6,2643.5,5.72169]
[1748395248750,4.04568801,2643.6,2643.5,4.9655]
[1748395248941,4.04568801,2643.6,2643.5,5.72169]
[1748395249248,2.67576,2643.6,2643.5,5.72169]
[1748395249550,4.26149271,2643.6,2643.5,5.72169]
[1748395249737,4.26149271,2643.6,2643.5,5.79508423]
[1748395250250,4.26228413,2643.6,2643.5,5.79508423]
[1748395250450,4.26245936,2643.6,2643.5,5.79508423]
[1748395250745,4.04708543,2643.6,2643.5,5.79508423]
[1748395251548,4.2626126,2643.6,2643.5,5.79508423]
[1748395251748,4.26261023,2643.6,2643.5,5.79508423]
[1748395253650,2.8912848,2643.6,2643.5,5.79508423]
[1748395253854,4.26468266,2643.6,2643.5,5.79508423]
[1748395254453,4.26513155,2643.6,2643.5,5.79508423]
[1748395254751,4.26513332,2643.6,2643.5,5.79508423]
[1748395255341,4.04952721,2643.6,2643.5,5.79508423]
[1748395255546,4.26528376,2643.6,2643.5,5.79508423]
[1748395255752,4.26528149,2643.6,2643.5,5.79508423]
[1748395256852,4.26529698,2643.6,2643.5,5.79508423]
[1748395257050,4.265299,2643.6,2643.5,5.79508423]
[1748395257651,1.37376721,2643.6,2643.5,5.79508423]
[1748395257855,0.00566861,2643.7,2643.6,0.75616]
[1748395259451,0.00566861,2643.7,2643.6,18.07816]
[1748395259853,0.00566861,2643.7,2643.6,0.75616]
[1748395260051,0.00566861,2643.7,2643.6,21.78816]
[1748395265351,0.00566861,2643.7,2643.6,4.46616]
[1748395265552,0.00566861,2643.7,2643.6,21.78716]
[1748395265958,0.00566861,2643.7,2643.6,21.86055423]
[1748395266151,0.00566861,2643.7,2643.6,0.82955423]
[1748395266352,0.00566861,2643.7,2643.6,21.85955423]
[1748395266652,0.00566861,2643.7,2643.6,0.82955423]
[1748395266848,0.00566861,2643.7,2643.6,21.85955423]
[1748395270254,0.6763,2644.3,2644.2,0.75599]
[1748395270448,2.26722999,2644.3,2644.2,4.45499]
[1748395270655,2.05139803,2644.3,2644.2,4.45499]
[1748395270851,2.2672127,2644.3,2644.2,4.45499]
[1748395271252,3.02317089,2644.3,2644.2,4.45499]
[1748395271452,3.0231355,2644.3,2644.2,4.45499]
[1748395271648,3.02312295,2644.3,2644.2,4.45499]
[1748395271854,3.02308694,2644.3,2644.2,4.45499]
[1748395272460,2.80735803,2644.3,2644.2,4.45499]
[1748395272662,3.02306662,2644.3,2644.2,4.45499]
[1748395273157,2.80735803,2644.3,2644.2,3.699]
[1748395273361,4.28545056,2644.3,2644.2,3.699]
[1748395273755,1.37411299,2644.3,2644.2,4.45499]
[1748395274061,0.62446861,2644.5,2644.4,0.75593]
[1748395274663,1.38039861,2644.5,2644.4,2.08723]
[1748395274966,0.62446861,2644.5,2644.4,2.08723]
[1748395275367,0.00566861,2644.5,2644.4,2.08723]
[1748395276363,0.00566861,2644.5,2644.4,5.29503]
[1748395278869,1.3633,2645.1,2644.4,4.5391]
[1748395279074,0.7559,2644.6,2644.5,0.7559]
[1748395279366,0.75585,2644.7,2644.6,0.75584]
[1748395279667,2.75983,2644.8,2644.7,0.75582]
[1748395279868,2.75983,2644.8,2644.7,3.699]